{"text_format":"3","workbook":"xlsx","n_sheets":3,"sheets":["Лист1","Лист2","Лист3"],"read":"whole","date_system":"1900"}

{"sheet":"Лист1","index":0,"n_rows":27,"n_cols":16,"rows_kept":27,"merged":[[0,2,0,6],[0,10,0,15]]}
[null,null,"ПОДДОРСКИЙ РАЙОН",{"$nulls":7},"ПОДДОРСКИЙ РАЙОН"]
[null,null,{"$f":"#REF!+1","v":{"$error":"#REF!"}},{"$f":"C2+1","v":{"$error":"#REF!"}},{"$error":"#REF!"},{"$error":"#REF!"},{"$error":"#REF!"},{"$nulls":3},{"$f":"G2+1","v":{"$error":"#REF!"}},{"$f":"K2+1","v":{"$error":"#REF!"}},{"$error":"#REF!"},{"$error":"#REF!"},{"$error":"#REF!"},{"$error":"#REF!"}]
[null,"ПРИЛОЖЕНИЕ 2 - Комфортность условий предоставления услуг","МАУ «Поддорское межпоселенческое социально-культурное объединение»","Переездовский сельский Дом культуры","Белебелковский  сельский Дом культуры имени Е.И.Орловой","Бураковский сельский Дом культуры","Заозерский сельский Дом культуры",null,null,"ПРИЛОЖЕНИЕ 2 - Комфортность условий предоставления услуг","Поддорский краеведческий музей","Нивский сельский Дом культуры","Масловский сельский Дом культуры","Перегинский сельский Дом культуры","Переходский сельский клуб","Отдел народного творчества"]
[null,"Блок 2.1.",{"$nulls":7},"Блок 2.1."]
[19,"наличие комфортной зоны отдыха (ожидания);","присутствует","присутствует","присутствует","присутствует","присутствует",null,19,"наличие комфортной зоны отдыха (ожидания);","присутствует","присутствует","присутствует","присутствует","присутствует","присутствует"]
[20,"наличие и понятность навигации внутри организации;","присутствует","присутствует","присутствует","присутствует","присутствует",null,20,"наличие и понятность навигации внутри организации;","присутствует","присутствует","присутствует","присутствует","присутствует","присутствует"]
[21,"доступность питьевой воды;","присутствует","присутствует","присутствует","присутствует","присутствует",null,21,"доступность питьевой воды;","присутствует","присутствует","присутствует","присутствует","присутствует","присутствует"]
[22,"наличие и доступность санитарно-гигиенических помещений (чистота помещений, наличие мыла, воды, туалетной бумаги и пр.);","присутствует","присутствует","присутствует","присутствует","присутствует",null,22,"наличие и доступность санитарно-гигиенических помещений (чистота помещений, наличие мыла, воды, туалетной бумаги и пр.);","присутствует","присутствует","присутствует","присутствует","присутствует","присутствует"]
[23,"санитарное состояние помещений организаций;","присутствует","присутствует","присутствует","присутствует","присутствует",null,23,"санитарное состояние помещений организаций;","присутствует","присутствует","присутствует","присутствует","присутствует","присутствует"]
[24,"возможность бронирования услуги/доступность записи на получение услуги (по телефону, с использованием сети \"Интернет\" на официальном сайте организации, при личном посещении и пр.).","присутствует","отсутствует","отсутствует","отсутствует","отсутствует",null,24,"возможность бронирования услуги/доступность записи на получение услуги (по телефону, с использованием сети \"Интернет\" на официальном сайте организации, при личном посещении и пр.).","присутствует","отсутствует","отсутствует","отсутствует","отсутствует","присутствует"]
[null,null,{"$f":"6-COUNTIF(C5:C10,\"отсутствует\")","v":6},5,5,5,5,{"$nulls":3},6,5,5,5,5,6]
[null,"Блок 3.1",{"$nulls":7},"Блок 3.1"]
[25,"оборудование входных групп пандусами/подъёмными платформами;","отсутствует","отсутствует","отсутствует","отсутствует","отсутствует",null,25,"оборудование входных групп пандусами/подъёмными платформами;","присутствует","присутствует","отсутствует","отсутствует","отсутствует","отсутствует"]
[26,"наличие выделенных стоянок для автотранспортных средств инвалидов;","отсутствует","отсутствует","отсутствует","отсутствует","отсутствует",null,26,"наличие выделенных стоянок для автотранспортных средств инвалидов;","отсутствует","отсутствует","отсутствует","отсутствует","отсутствует","отсутствует"]
[27,"наличие адаптированных лифтов, поручней, расширенных дверных проёмов;","отсутствует","отсутствует","присутствует","присутствует","присутствует",null,27,"наличие адаптированных лифтов, поручней, расширенных дверных проёмов;","присутствует","присутствует","присутствует","присутствует","отсутствует","отсутствует"]
[28,"наличие сменных кресел-колясок;","отсутствует","отсутствует","отсутствует","отсутствует","отсутствует",null,28,"наличие сменных кресел-колясок;","отсутствует","отсутствует","отсутствует","отсутствует","отсутствует","отсутствует"]
[29,"наличие специально оборудованных санитарно-гигиенических помещений в организации","отсутствует","отсутствует","отсутствует","отсутствует","отсутствует",null,29,"наличие специально оборудованных санитарно-гигиенических помещений в организации","отсутствует","отсутствует","отсутствует","отсутствует","отсутствует","отсутствует"]
[null,"Блок 3.2.",{"$f":"5-COUNTIF(C13:C17,\"отсутствует\")","v":0},0,1,1,1,null,null,"Блок 3.2.",2,2,1,1,0,0]
[30,"дублирование для инвалидов по слуху и зрению звуковой и зрительной информации;","присутствует","отсутствует","отсутствует","отсутствует","отсутствует",null,30,"дублирование для инвалидов по слуху и зрению звуковой и зрительной информации;","присутствует","отсутствует","отсутствует","отсутствует","отсутствует","присутствует"]
[31,"дублирование надписей, знаков и иной текстовой и графической информации знаками, выполненными рельефно-точечным шрифтом Брайля;","отсутствует","отсутствует","отсутствует","отсутствует","отсутствует",null,31,"дублирование надписей, знаков и иной текстовой и графической информации знаками, выполненными рельефно-точечным шрифтом Брайля;","отсутствует","отсутствует","отсутствует","отсутствует","отсутствует","отсутствует"]
[32,"возможность предоставления инвалидам по слуху (слуху и зрению) услуг сурдопереводчика (тифлосурдопереводчика);","отсутствует","отсутствует","отсутствует","отсутствует","отсутствует",null,32,"возможность предоставления инвалидам по слуху (слуху и зрению) услуг сурдопереводчика (тифлосурдопереводчика);","отсутствует","отсутствует","отсутствует","отсутствует","отсутствует","отсутствует"]
[33,"наличие альтернативной версии официального сайта организации в сети \"Интернет\" для инвалидов по зрению;","https://pmsko.nubex.ru/4788/","https://pmsko.nubex.ru/4788/","https://pmsko.nubex.ru/4788/","https://pmsko.nubex.ru/4788/","https://pmsko.nubex.ru/4788/",null,33,"наличие альтернативной версии официального сайта организации в сети \"Интернет\" для инвалидов по зрению;","https://pmsko.nubex.ru/4788/","https://pmsko.nubex.ru/4788/","https://pmsko.nubex.ru/4788/","https://pmsko.nubex.ru/4788/","https://pmsko.nubex.ru/4788/","https://pmsko.nubex.ru/4788/"]
[34,"помощь, оказываемая работниками организации, прошедшими необходимое обучение (инструктирование) (возможность сопровождения работниками организации);","присутствует","отсутствует","присутствует","отсутствует","отсутствует",null,34,"помощь, оказываемая работниками организации, прошедшими необходимое обучение (инструктирование) (возможность сопровождения работниками организации);","присутствует","отсутствует","отсутствует","отсутствует","отсутствует","присутствует"]
[35,"наличие возможности предоставления услуги в дистанционном режиме или на дому.","присутствует","присутствует","присутствует","присутствует","присутствует",null,35,"наличие возможности предоставления услуги в дистанционном режиме или на дому.","присутствует","присутствует","присутствует","присутствует","присутствует","присутствует"]
[null,null,{"$f":"6-COUNTIF(C19:C24,\"отсутствует\")","v":4},{"$f":"6-COUNTIF(D19:D24,\"отсутствует\")","v":2},{"$f":"6-COUNTIF(E19:E24,\"отсутствует\")","v":3},{"$f":"6-COUNTIF(F19:F24,\"отсутствует\")","v":2},{"$f":"6-COUNTIF(G19:G24,\"отсутствует\")","v":2},{"$nulls":3},{"$f":"6-COUNTIF(K19:K24,\"отсутствует\")","v":4},{"$f":"6-COUNTIF(L19:L24,\"отсутствует\")","v":2},{"$f":"6-COUNTIF(M19:M24,\"отсутствует\")","v":2},{"$f":"6-COUNTIF(N19:N24,\"отсутствует\")","v":2},{"$f":"6-COUNTIF(O19:O24,\"отсутствует\")","v":2},{"$f":"6-COUNTIF(P19:P24,\"отсутствует\")","v":4}]
[]
[null,"Подготовлено: ООО \"МА \"МЕДИА-ПОЛЮС\""]

{"sheet":"Лист2","index":1,"n_rows":73,"n_cols":6,"rows_kept":73,"merged":[[2,3,2,5],[3,3,3,5],[39,1,39,4]]}
[]
[]
[null,null,"анкет"]
[]
[null,null,"Параметр оценки","САЙТ","СТЕНД"]
[null,1,"полное и сокращенное наименование, место нахождения, почтовый адрес, схема проезда;"]
[null,2,"дата создания организации, сведения об учредителе (учредителях);"]
[null,3,"учредительные документы (копия устава, свидетельство о государственной регистрации, решение учредителя о создании и о назначении руководителя организации культуры, положения о филиалах и представительствах);"]
[null,4,"структуру организации культуры, режим, график работы, контактные телефоны, адреса электронной почты;"]
[null,5,"фамилии, имена отчества, должности руководящего состава организации культуры, ее структурных подразделений и филиалов (при их наличии);"]
[null,6,"сведения о видах предоставляемых услуг;"]
[null,7,"копии нормативных правовых актов, устанавливающих цены (тарифы) на услуги либо порядок их установления, перечень оказываемых платных услуг, цены (тарифы) на услуги;"]
[null,8,"копию плана финансово-хозяйственной деятельности организации культуры, утвержденного в установленном законодательством Российской Федерации порядке, или бюджетной сметы (информация об объеме предоставляемых услуг);"]
[null,9,"информацию о материально-техническом обеспечении предоставления услуг организацией культуры;"]
[null,10,"копии лицензий на осуществление деятельности, подлежащей лицензированию в соответствии с законодательством Российской Федерации;"]
[null,11,"информацию о планируемых мероприятиях;"]
[null,12,"информацию о выполнении государственного (муниципального) задания, отчет о результатах деятельности учреждения;"]
[null,13,"результаты независимой оценки качества оказания услуг организациями культуры;"]
[null,14,"план по улучшению качества работы организации;"]
[null,15,"информацию, размещение и опубликование которой являются обязательными в соответствии с законодательством Российской Федерации;"]
[null,16,"информацию, которая размещается и опубликовывается по решению учредителя организации культуры;"]
[null,17,"информацию, которая размещается и опубликовывается по решению организации культуры;"]
[]
[]
[null,19,"обратная связь посредством телефона;"]
[null,20,"обратная связь посредством электронной почты;"]
[null,21,"обратная связь посредством  электронных сервисов (форма для подачи электронного обращения/жалобы/предложения; раздел «Часто задаваемые вопросы»; получение консультации по оказываемым услугам и пр.);"]
[null,22,"обеспечение технической возможности выражения получателем услуг мнения о качестве оказания услуг (наличие анкеты для опроса граждан или гиперссылки на нее)."]
[null,"22а","FAQ (вопрос-ответ)"]
[{"$nulls":5},{"$f":"COUNTIF(F25:F29,\">0\")","v":0}]
{"$rows_empty":9}
[null,"ОЦЕНКА ПО ФОТО/ДОКУМЕНТАМ"]
[null,23,"наличие комфортной зоны отдыха (ожидания);"]
[null,24,"наличие и понятность навигации внутри организации;"]
[null,25,"доступность питьевой воды;"]
[null,26,"наличие и доступность санитарно-гигиенических помещений (чистота помещений, наличие мыла, воды, туалетной бумаги и пр.);"]
[null,27,"санитарное состояние помещений организаций;"]
[null,28,"возможность бронирования услуги/доступность записи на получение услуги (по телефону, с использованием сети \"Интернет\" на официальном сайте организации, при личном посещении и пр.)."]
[{"$nulls":5},{"$f":"COUNTIF(F41:F46,\">0\")","v":0}]
[]
[null,29,"оборудование входных групп пандусами/подъёмными платформами;"]
[null,30,"наличие выделенных стоянок для автотранспортных средств инвалидов;"]
[null,31,"наличие адаптированных лифтов, поручней, расширенных дверных проёмов;"]
[null,32,"наличие сменных кресел-колясок;"]
[null,33,"наличие специально оборудованных санитарно-гигиенических помещений в организации"]
[{"$nulls":5},{"$f":"COUNTIF(F49:F53,\">0\")","v":0}]
[null,34,"дублирование для инвалидов по слуху и зрению звуковой и зрительной информации;"]
[null,35,"дублирование надписей, знаков и иной текстовой и графической информации знаками, выполненными рельефно-точечным шрифтом Брайля;"]
[null,36,"возможность предоставления инвалидам по слуху (слуху и зрению) услуг сурдопереводчика (тифлосурдопереводчика);"]
[null,37,"наличие альтернативной версии официального сайта организации в сети \"Интернет\" для инвалидов по зрению;"]
[null,38,"помощь, оказываемая работниками организации, прошедшими необходимое обучение (инструктирование) (возможность сопровождения работниками организации);"]
[null,39,"наличие возможности предоставления услуги в дистанционном режиме или на дому."]
[{"$nulls":5},{"$f":"COUNTIF(F55:F60,\">0\")","v":0}]
[]
[]
[null,null,"Настоящим подтверждаем, что ИП Мезенцев Фёдор Викторович"]
[null,null,"посетил учреждение с целью проведения \"Независимой оценки качества условий оказания услуг\","]
[null,null,"информация внесена корректно."]
[{"$nulls":4},"дата"]
[]
[]
[null,null,"должность, ФИО",null,"подпись"]
[]
[]
[{"$nulls":3},"место печати"]

{"sheet":"Лист3","index":2,"n_rows":0,"n_cols":0,"rows_kept":0}